bitfinex-derivatives/quotes_BTCF0:USTF0_20250809
["timestamp","ask_amount","ask_price","bid_price","bid_amount"]
[1754739521134,0.46149782,117250.0,117240.0,0.01602]
[1754739521639,0.46149782,117250.0,117240.0,0.01643]
[1754739521840,0.46149782,117250.0,117240.0,0.01743]
[1754739522535,0.2022092,117240.0,117230.0,9e-08]
[1754739522734,1.00340388,117240.0,117230.0,0.01543009]
[1754739522927,0.22500388,117240.0,117230.0,0.36145888]
[1754739523134,0.57103267,117240.0,117230.0,0.01543009]
[1754739523437,0.57103267,117240.0,117230.0,0.01477009]
[1754739523836,0.57103267,117240.0,117230.0,0.01577009]
[1754739524035,0.22500388,117240.0,117230.0,0.01577009]
[1754739524341,0.57303267,117240.0,117230.0,0.01643009]
[1754739524537,1.17496021,117240.0,117230.0,0.00100009]
[1754739524834,1.15216553,117240.0,117230.0,0.00100009]
[1754739525031,0.80613674,117240.0,117230.0,0.00100009]
[1754739525430,0.82887164,117240.0,117230.0,0.00100009]
[1754739527841,0.83447164,117240.0,117230.0,0.00100009]
[1754739528840,0.66387164,117240.0,117230.0,0.00100009]
[1754739531543,0.64113674,117240.0,117230.0,0.01577009]
[1754739531943,0.64113674,117240.0,117230.0,0.01643009]
[1754739532244,0.2098092,117240.0,117230.0,0.02540009]
[1754739532538,0.2098092,117240.0,117230.0,0.01643009]
[1754739532539,0.55583799,117240.0,117230.0,0.01643009]
[1754739533543,0.2098092,117240.0,117230.0,0.02540009]
[1754739534346,0.55583799,117240.0,117230.0,0.02540009]
[1754739534546,0.55583799,117240.0,117230.0,0.01643009]
[1754739534743,0.2098092,117240.0,117230.0,0.02540009]
[1754739535545,0.2098092,117240.0,117230.0,0.01643009]
[1754739536045,0.2098092,117240.0,117230.0,0.37142888]
[1754739536546,0.2098092,117240.0,117230.0,0.02540009]
[1754739537251,0.2098092,117240.0,117230.0,0.37142888]
[1754739538145,0.2098092,117240.0,117230.0,0.02540009]
[1754739538746,0.1871892,117240.0,117230.0,0.01643009]
[1754739538939,0.2098092,117240.0,117230.0,0.02540009]
[1754739539341,0.2098092,117240.0,117230.0,0.01643009]
[1754739540245,0.2098092,117240.0,117230.0,0.02540009]
[1754739541252,0.1625492,117240.0,117230.0,0.45672538]
[1754739541545,0.1625492,117240.0,117230.0,0.11069659]
[1754739541752,0.1951092,117240.0,117230.0,0.45672538]
[1754739541945,0.2098092,117240.0,117230.0,0.45672538]
[1754739543447,0.0928892,117240.0,117230.0,0.44775538]
[1754739543652,0.1155092,117240.0,117230.0,0.45672538]
[1754739544253,0.2098092,117240.0,117230.0,0.45672538]
[1754739547055,0.1155092,117240.0,117230.0,0.45672538]
[1754739547754,0.1099092,117240.0,117230.0,0.45672538]
[1754739550057,0.13273445,117240.0,117230.0,0.45672538]
[1754739550752,0.16616445,117240.0,117230.0,0.45672538]
[1754739550952,0.17527445,117240.0,117230.0,0.45672538]
[1754739551151,0.18883445,117240.0,117230.0,0.45672538]
[1754739551355,0.11011445,117240.0,117230.0,0.45672538]
[1754739551556,0.13493445,117240.0,117230.0,0.45672538]
[1754739552459,0.11011445,117240.0,117230.0,1.40492538]
[1754739552860,0.13493445,117240.0,117230.0,1.40492538]
[1754739554561,0.13493445,117240.0,117230.0,1.23432538]
[1754739555358,0.1121092,117240.0,117230.0,1.23432538]
[1754739557360,0.0872892,117240.0,117230.0,1.23432538]
[1754739558862,0.1121092,117240.0,117230.0,1.23432538]
[1754739559664,0.1121092,117240.0,117230.0,1.40492538]
[1754739560666,0.1121092,117240.0,117230.0,1.23432538]
[1754739562963,0.0872892,117240.0,117230.0,1.23432538]
[1754739563358,0.0872892,117240.0,117230.0,0.88829659]
[1754739563564,0.0872892,117240.0,117230.0,1.23432538]
[1754739563764,0.1121092,117240.0,117230.0,1.23432538]
[1754739566462,0.2057892,117240.0,117230.0,1.23432538]
[1754739566665,0.2057892,117240.0,117230.0,0.88829659]
[1754739566857,0.1587992,117240.0,117230.0,1.22535538]
[1754739567057,0.55181799,117240.0,117230.0,0.77848009]
[1754739567262,0.2057892,117240.0,117230.0,0.77848009]
[1754739567663,0.2057892,117240.0,117230.0,0.00100009]
[1754739567866,0.55181799,117240.0,117230.0,0.00100009]
[1754739571868,0.0852964,117230.0,117220.0,0.77748]
[1754739572065,0.2037964,117230.0,117220.0,0.77748]
[1754739575959,0.2037964,117230.0,117220.0,0.77889]
[1754739576175,0.2037964,117230.0,117220.0,0.77748]
[1754739576667,0.2047837,117220.0,117210.0,1.12499879]
[1754739576860,0.2047837,117220.0,117210.0,1.13935879]
[1754739578076,0.2047837,117220.0,117210.0,1.14035879]
[1754739579069,0.2047837,117220.0,117210.0,1.14361879]
[1754739579273,0.2057837,117220.0,117210.0,1.14361879]
[1754739580372,0.2057837,117220.0,117210.0,0.36605879]
[1754739580677,0.2057837,117220.0,117210.0,0.79759]
[1754739580869,0.2057837,117220.0,117210.0,1.14361879]
[1754739581270,0.2057837,117220.0,117210.0,0.79759]
[1754739582474,0.2057837,117220.0,117210.0,0.79392]
[1754739582876,0.2057837,117220.0,117210.0,0.79533]
[1754739583075,0.2057837,117220.0,117210.0,0.79759]
[1754739583580,0.2057837,117220.0,117210.0,1.14361879]
[1754739583876,0.2057837,117220.0,117210.0,0.79759]
[1754739585569,0.2057837,117220.0,117210.0,0.79392]
[1754739585766,0.55181249,117220.0,117210.0,0.79533]
[1754739586163,0.55181249,117220.0,117210.0,0.77956]
[1754739587175,0.55181249,117220.0,117210.0,0.002]
[1754739587478,0.55181249,117220.0,117210.0,0.78112]
[1754739588074,0.55181249,117220.0,117210.0,0.78253]
[1754739589677,0.55181249,117220.0,117210.0,0.78112]
[1754739590071,0.55181249,117220.0,117210.0,0.78253]
[1754739590274,0.55181249,117220.0,117210.0,0.00341]
[1754739590672,0.0853394,117170.0,117160.0,0.04642]
[1754739590877,0.0853394,117170.0,117160.0,0.99451318]
[1754739591082,0.0853394,117170.0,117160.0,1.60257978]
[1754739591277,0.0853394,117170.0,117160.0,1.60258428]
[1754739591478,0.0853394,117170.0,117160.0,1.24099339]
[1754739591682,0.0853394,117170.0,117160.0,1.32634009]
[1754739591977,0.0863394,117170.0,117160.0,0.9823113]
[1754739592179,0.1109394,117170.0,117160.0,0.8969646]
[1754739592372,0.1109394,117170.0,117160.0,1.24299339]
[1754739592572,0.1109394,117170.0,117160.0,0.9823113]
[1754739592774,0.1109394,117170.0,117160.0,1.32834009]
[1754739592982,0.1109394,117170.0,117160.0,1.33702978]
[1754739594478,0.0863394,117170.0,117160.0,1.33702978]
[1754739595176,0.0863394,117170.0,117160.0,0.99100099]
[1754739595381,0.0863394,117170.0,117160.0,1.33702978]
[1754739596183,0.0863394,117170.0,117160.0,0.99100099]
[1754739596581,0.0863394,117170.0,117160.0,1.33702978]
[1754739597283,0.0863394,117170.0,117160.0,0.99100099]
[1754739597577,0.1109394,117170.0,117160.0,0.90565429]
[1754739598075,0.1109394,117170.0,117160.0,1.25168308]
[1754739598279,0.1109394,117170.0,117160.0,0.90565429]
[1754739598680,0.1109394,117170.0,117160.0,1.25168308]
[1754739599279,0.1109394,117170.0,117160.0,0.90565429]
[1754739599678,0.1109394,117170.0,117160.0,1.25168308]
[1754739600178,0.1109394,117170.0,117160.0,0.99100019]
[1754739600374,0.0863394,117170.0,117160.0,0.99100019]
[1754739600779,0.0863394,117170.0,117160.0,1.33702898]
[1754739600985,0.0863394,117170.0,117160.0,0.99100019]
[1754739601184,0.0863394,117170.0,117160.0,1.33702898]
[1754739601377,0.0863394,117170.0,117160.0,0.99100019]
[1754739601779,0.0863394,117170.0,117160.0,1.33702898]
[1754739601980,0.0773694,117170.0,117160.0,1.68305777]
[1754739602174,0.0773694,117170.0,117160.0,0.99100019]
[1754739602478,0.1019694,117170.0,117160.0,0.90565429]
[1754739602675,0.1019694,117170.0,117160.0,0.82689969]
[1754739602676,0.1968494,117170.0,117160.0,0.82689969]
[1754739602879,0.1019694,117170.0,117160.0,0.82689969]
[1754739603078,0.1522494,117170.0,117160.0,1.17292848]
[1754739603277,0.1829594,117170.0,117160.0,0.82689969]
[1754739603480,0.1968494,117170.0,117160.0,0.82689969]
[1754739604192,0.1829594,117170.0,117160.0,0.82689969]
[1754739604384,0.1968494,117170.0,117160.0,0.82689969]
[1754739604587,0.1968494,117170.0,117160.0,1.17292848]
[1754739604884,0.1954694,117170.0,117160.0,0.82689969]
[1754739605483,0.1954694,117170.0,117160.0,1.17292848]
[1754739605684,0.1488694,117170.0,117160.0,1.17292848]
[1754739605886,0.1808494,117170.0,117160.0,1.17292848]
[1754739606190,0.1954694,117170.0,117160.0,0.82689969]
[1754739606884,0.1954694,117170.0,117160.0,0.04813969]
[1754739607383,0.1954694,117170.0,117160.0,0.89053969]
[1754739607978,0.54149819,117170.0,117160.0,0.01068969]
[1754739608186,0.54149819,117170.0,117160.0,0.002]
[1754739608788,0.1954694,117170.0,117160.0,0.02475]
[1754739608981,0.54149819,117170.0,117160.0,0.02475]
[1754739609386,0.1954694,117170.0,117160.0,0.02475]
[1754739609887,0.54149819,117170.0,117160.0,0.02475]
[1754739610084,0.1954694,117170.0,117160.0,0.02475]
[1754739610280,0.1954694,117170.0,117160.0,0.37077879]
[1754739610485,0.1488694,117170.0,117160.0,0.37077879]
[1754739610783,0.1808494,117170.0,117160.0,0.37077879]
[1754739611085,0.1019694,117170.0,117160.0,0.45612289]
[1754739611290,0.1019694,117170.0,117160.0,0.37077879]
[1754739611584,0.0773694,117170.0,117160.0,0.45612289]
[1754739611887,0.0773694,117170.0,117160.0,0.1100941]
[1754739612082,0.0773694,117170.0,117160.0,0.45612289]
[1754739612386,0.0773694,117170.0,117160.0,0.1100941]
[1754739612583,0.0773694,117170.0,117160.0,0.45612289]
[1754739613181,0.0773694,117170.0,117160.0,0.80215168]
[1754739615087,0.0773694,117170.0,117160.0,0.1100941]
[1754739615386,0.0773694,117170.0,117160.0,0.80215168]
[1754739616386,0.0773694,117170.0,117160.0,0.1100941]
[1754739616589,0.0773694,117170.0,117160.0,0.45612289]
[1754739616788,0.1006994,117170.0,117160.0,0.45612289]
[1754739617883,0.1006994,117170.0,117160.0,0.80215168]
[1754739618091,0.0773694,117170.0,117160.0,0.80215168]
[1754739618291,0.0863374,117170.0,117160.0,0.80215168]
[1754739618479,0.3413544,117180.0,117170.0,0.0853374]
[1754739618792,0.3413544,117180.0,117170.0,1.29947619]
[1754739618981,0.2560156,117180.0,117170.0,1.29947619]
[1754739619183,0.2560156,117180.0,117170.0,0.9534474]
[1754739619485,0.2560156,117180.0,117170.0,1.29947619]
[1754739619684,0.2570156,117180.0,117170.0,1.30047619]
[1754739620497,0.2803456,117180.0,117170.0,1.30047619]
[1754739622393,0.2570156,117180.0,117170.0,1.30047619]
[1754739622585,0.1716768,117180.0,117170.0,1.30047619]
[1754739623186,0.1950068,117180.0,117170.0,1.30047619]
[1754739624797,0.1716768,117180.0,117170.0,1.47116419]
[1754739626201,0.1716768,117180.0,117170.0,1.1251354]
[1754739626399,0.1950068,117180.0,117170.0,1.47116419]
[1754739627096,0.2430768,117180.0,117170.0,1.1251354]
[1754739627294,0.1950068,117180.0,117170.0,1.47116419]
[1754739627693,0.1950068,117180.0,117170.0,1.30047619]
[1754739628401,0.1950068,117180.0,117170.0,0.9544474]
[1754739628601,0.1950068,117180.0,117170.0,1.30047619]
[1754739630999,0.1950068,117180.0,117170.0,0.9544474]
[1754739631208,0.2896768,117180.0,117170.0,1.30047619]
[1754739631597,0.2104468,117180.0,117170.0,1.30047619]
[1754739631903,0.2896768,117180.0,117170.0,1.30047619]
[1754739633405,0.2337668,117180.0,117170.0,1.30047619]
[1754739633712,0.1950068,117180.0,117170.0,1.30047619]
[1754739635205,0.1950068,117180.0,117170.0,0.9544474]
[1754739635503,0.1950068,117180.0,117170.0,1.30047619]
[1754739635697,0.2284468,117180.0,117170.0,1.30047619]
[1754739636601,0.2438868,117180.0,117170.0,1.30047619]
[1754739637106,0.2438868,117180.0,117170.0,0.9544474]
[1754739637306,0.2438868,117180.0,117170.0,1.30047619]
[1754739637506,0.2901868,117180.0,117170.0,1.21713879]
[1754739637810,0.2901868,117180.0,117170.0,1.19594879]
[1754739638194,0.2901868,117180.0,117170.0,1.20861879]
[1754739638904,0.2901868,117180.0,117170.0,0.86259]
[1754739639109,0.2901868,117180.0,117170.0,0.36892879]
[1754739639306,0.2901868,117180.0,117170.0,1.20517879]
[1754739639513,0.2901868,117180.0,117170.0,0.84992]
[1754739641409,0.2901868,117180.0,117170.0,0.87182]
[1754739642006,0.2901868,117180.0,117170.0,1.21784879]
[1754739643609,0.2901868,117180.0,117170.0,0.0229]
[1754739643809,0.2901868,117180.0,117170.0,0.8717]
[1754739645016,0.2901868,117180.0,117170.0,1.21772879]
[1754739645611,0.2901868,117180.0,117170.0,0.8717]
[1754739645814,0.2901868,117180.0,117170.0,1.21772879]
[1754739646712,0.2901868,117180.0,117170.0,0.8717]
[1754739646923,0.2901868,117180.0,117170.0,1.21772879]
[1754739648318,0.2901868,117180.0,117170.0,0.8717]
[1754739648614,0.2901868,117180.0,117170.0,1.21772879]
[1754739650410,0.2901868,117180.0,117170.0,1.30306579]
[1754739651414,0.1950068,117180.0,117170.0,1.30306579]
[1754739651719,0.1716768,117180.0,117170.0,1.30306579]
[1754739651910,0.1964068,117180.0,117170.0,1.30306579]
[1754739652112,0.1964068,117180.0,117170.0,1.41052905]
[1754739652918,0.1716768,117180.0,117170.0,1.41052905]
[1754739653613,0.1964068,117180.0,117170.0,1.41052905]
[1754739653917,0.1964068,117180.0,117170.0,1.06450026]
[1754739654119,0.1964068,117180.0,117170.0,1.41052905]
[1754739656821,0.1716768,117180.0,117170.0,1.41052905]
[1754739658118,0.2917568,117180.0,117170.0,0.13036326]
[1754739658322,0.2917568,117180.0,117170.0,0.86958]
[1754739658518,0.2917568,117180.0,117170.0,1.21560879]
[1754739661226,0.2917568,117180.0,117170.0,1.30094569]
[1754739661922,0.2917568,117180.0,117170.0,1.21560879]
[1754739662418,0.1964068,117180.0,117170.0,1.30094569]
[1754739662626,0.1716768,117180.0,117170.0,1.40840895]
[1754739663131,0.1964068,117180.0,117170.0,1.40840895]
[1754739664924,0.1964068,117180.0,117170.0,1.06238016]
[1754739665223,0.1964068,117180.0,117170.0,1.40840895]
[1754739666026,0.1964068,117180.0,117170.0,1.30094569]
[1754739668925,0.1716768,117180.0,117170.0,1.30094569]
[1754739669224,0.1960568,117180.0,117170.0,1.30094569]
[1754739669929,0.1960568,117180.0,117170.0,0.9549169]
[1754739670227,0.1960568,117180.0,117170.0,1.30094569]
[1754739671422,0.0863296,117180.0,117170.0,1.30094569]
[1754739671724,0.001,117180.0,117170.0,1.57909695]
[1754739671923,0.2559824,117190.0,117180.0,0.0853296]
[1754739672222,0.1950338,117190.0,117180.0,0.45317839]
[1754739672428,0.1706538,117190.0,117180.0,0.45317839]
[1754739672631,0.1950338,117190.0,117180.0,0.45317839]
[1754739672928,0.1950338,117190.0,117180.0,0.56064165]
[1754739673121,0.1960338,117190.0,117180.0,0.56064165]
[1754739673426,0.001,117190.0,117180.0,0.56064165]
[1754739673829,0.001,117190.0,117180.0,0.56164165]
[1754739674027,0.0863223,117190.0,117180.0,0.56164165]
[1754739674621,0.1107023,117190.0,117180.0,0.56164165]
[1754739675122,0.1107023,117190.0,117180.0,0.21561286]
[1754739675324,0.1107023,117190.0,117180.0,0.56164165]
[1754739676929,0.0863223,117190.0,117180.0,0.56164165]
[1754739677423,0.001,117190.0,117180.0,0.56164165]
[1754739677623,0.0863223,117190.0,117180.0,0.56164165]
[1754739678932,0.1107023,117190.0,117180.0,0.56164165]
[1754739681332,0.0863223,117190.0,117180.0,0.45417839]
[1754739682928,0.0863223,117190.0,117180.0,0.56164165]
[1754739683340,0.0863223,117190.0,117180.0,0.45417839]
[1754739683529,0.1107023,117190.0,117180.0,0.45417839]
[1754739683836,0.1107023,117190.0,117180.0,0.56164165]
[1754739684538,0.1107023,117190.0,117180.0,0.45417839]
[1754739684734,0.02538,117190.0,117180.0,0.45417839]
[1754739685232,0.02538,117190.0,117180.0,0.56164165]
[1754739685735,0.001,117190.0,117180.0,0.56164165]
[1754739685937,0.02438,117200.0,117190.0,0.01267]
[1754739686130,0.02438,117200.0,117190.0,1.64431988]
[1754739686441,0.02438,117200.0,117190.0,1.29829109]
[1754739687139,0.02538,117200.0,117190.0,1.29829109]
[1754739687936,0.02738,117200.0,117190.0,1.64431988]
[1754739688629,0.02738,117200.0,117190.0,1.75178314]
[1754739688829,0.02738,117200.0,117190.0,1.05972556]
[1754739689131,0.02738,117200.0,117190.0,1.75178314]
[1754739690136,0.02738,117200.0,117190.0,1.64431988]
[1754739690334,0.003,117200.0,117190.0,1.64431988]
[1754739690933,0.02738,117200.0,117190.0,1.64431988]
[1754739692042,0.003,117200.0,117190.0,1.64431988]
[1754739692339,0.02738,117200.0,117190.0,1.64431988]
[1754739696032,0.003,117200.0,117190.0,1.64431988]
[1754739696945,0.003,117200.0,117190.0,1.75178314]
[1754739697846,0.001,117200.0,117190.0,1.64531988]
[1754739698644,0.001,117200.0,117190.0,1.90328188]
[1754739699141,0.23183,117220.0,117200.0,0.2658102]
[1754739699343,0.27491,117220.0,117210.0,1.28464649]
[1754739700043,0.2892,117220.0,117210.0,1.28464649]
[1754739700542,0.2912,117220.0,117210.0,1.28464649]
[1754739700742,0.02553,117220.0,117210.0,1.28464649]
[1754739700947,0.02653,117220.0,117210.0,1.28464649]
[1754739701138,0.02653,117220.0,117210.0,1.35446289]
[1754739701740,0.1254541,117230.0,117220.0,0.00987]
[1754739701952,0.1591741,117230.0,117220.0,0.45386919]
[1754739702345,0.1254541,117230.0,117220.0,0.45386919]
[1754739702544,0.04016,117230.0,117220.0,0.45386919]
[1754739702746,0.1591732,117230.0,117220.0,0.45386919]
[1754739702947,0.02353,117230.0,117220.0,0.45386919]
[1754739703751,0.02353,117230.0,117220.0,0.45586919]
[1754739703956,0.02453,117230.0,117220.0,0.45786919]
[1754739704453,0.001,117230.0,117220.0,0.80389798]
[1754739704764,0.1647668,117240.0,117230.0,0.1078332]
[1754739704948,0.1647668,117240.0,117230.0,1.63917078]
[1754739705453,0.1310468,117240.0,117230.0,1.63917078]
[1754739705653,0.1647668,117240.0,117230.0,1.63917078]
[1754739705855,0.2094768,117240.0,117230.0,1.63917078]
[1754739706058,0.2094768,117240.0,117230.0,1.29314199]
[1754739706249,0.2094768,117240.0,117230.0,1.29514199]
[1754739706444,0.2094768,117240.0,117230.0,0.9491132]
[1754739706943,0.2094768,117240.0,117230.0,1.30282068]
[1754739708153,0.2094768,117240.0,117230.0,0.95679189]
[1754739708352,0.2094768,117240.0,117230.0,1.30282068]
[1754739709059,0.2094768,117240.0,117230.0,0.95679189]
[1754739709357,0.2094768,117240.0,117230.0,1.30282068]
[1754739710558,0.2094768,117240.0,117230.0,0.35570748]
[1754739710765,0.2094768,117240.0,117230.0,1.19358748]
[1754739710962,0.2094768,117240.0,117230.0,0.84755869]
[1754739711261,0.2094768,117240.0,117230.0,1.19358748]
[1754739712264,0.2094768,117240.0,117230.0,1.20625748]
[1754739712558,0.2094768,117240.0,117230.0,1.29155068]
[1754739714363,0.2094768,117240.0,117230.0,1.20625748]
[1754739714669,0.2094768,117240.0,117230.0,1.29155068]
[1754739717866,0.1614668,117240.0,117230.0,1.29155068]
[1754739718058,0.1951868,117240.0,117230.0,1.29155068]
[1754739718454,0.1521068,117240.0,117230.0,1.29155068]
[1754739720665,0.1521068,117240.0,117230.0,1.30098068]
[1754739720866,0.1858268,117240.0,117230.0,1.30098068]
[1754739722359,0.0908859,117240.0,117230.0,1.30098068]
[1754739722571,0.1144159,117240.0,117230.0,1.30098068]
[1754739725171,0.1144159,117240.0,117230.0,0.95495189]
[1754739725473,0.1144159,117240.0,117230.0,1.64700947]
[1754739725972,0.1144159,117240.0,117230.0,1.30098068]
[1754739726271,0.0908859,117240.0,117230.0,1.30098068]
[1754739726677,0.1151059,117240.0,117230.0,1.30098068]
[1754739732075,0.02982,117240.0,117230.0,1.30098068]
[1754739732276,0.02982,117240.0,117230.0,1.64700947]
[1754739732480,0.0056,117240.0,117230.0,1.64700947]
[1754739733981,0.02982,117240.0,117230.0,1.64700947]
[1754739734868,0.02982,117240.0,117230.0,1.30098068]
[1754739736382,0.02982,117240.0,117230.0,1.64700947]
[1754739736679,0.0056,117240.0,117230.0,1.64700947]
[1754739737285,0.02982,117240.0,117230.0,1.64700947]
[1754739737580,0.02982,117240.0,117230.0,1.30098068]
[1754739738183,0.3743848,117260.0,117250.0,0.1079386]
[1754739738377,0.3608248,117260.0,117250.0,1.28732739]
[1754739738579,0.2891068,117260.0,117250.0,1.28732739]
[1754739739481,0.2921068,117260.0,117250.0,1.28732739]
[1754739740085,0.31344522,117260.0,117250.0,1.28732739]
[1754739740286,0.2921068,117260.0,117250.0,1.28732739]
[1754739740982,0.2911068,117260.0,117250.0,1.28732739]
[1754739741183,0.2445168,117260.0,117250.0,1.28932739]
[1754739741687,0.2425168,117260.0,117250.0,1.28932739]
[1754739742286,0.2755468,117260.0,117250.0,1.28932739]
[1754739742879,0.2891068,117260.0,117250.0,0.9432986]
[1754739743084,0.2891068,117260.0,117250.0,1.28932739]
[1754739746884,0.2425168,117260.0,117250.0,1.28932739]
[1754739747390,0.2425168,117260.0,117250.0,0.9432986]
[1754739747889,0.2425168,117260.0,117250.0,1.28932739]
[1754739748279,0.1947668,117260.0,117250.0,1.28932739]
[1754739748482,0.1094918,117260.0,117250.0,1.28932739]
[1754739750684,0.3652995,117270.0,117260.0,0.02266]
[1754739750993,0.2800285,117270.0,117260.0,0.45396009]
[1754739751694,0.1947575,117270.0,117260.0,0.45396009]
[1754739751885,0.1947575,117270.0,117260.0,0.1089313]
[1754739752088,0.1947575,117270.0,117260.0,0.45496009]
[1754739752384,0.1957575,117270.0,117260.0,0.45496009]
[1754739752583,0.1957575,117270.0,117260.0,0.1089313]
[1754739752784,0.2900975,117270.0,117260.0,0.1089313]
[1754739752985,0.2890975,117270.0,117260.0,0.45696009]
[1754739753693,0.2900975,117270.0,117260.0,0.45896009]
[1754739759598,0.2765375,117270.0,117260.0,0.45896009]
[1754739759897,0.1957575,117270.0,117260.0,0.45896009]
[1754739760598,0.2430075,117270.0,117260.0,0.45896009]
[1754739761801,0.2650475,117270.0,117260.0,0.45896009]
[1754739762001,0.2892275,117270.0,117260.0,0.45896009]
[1754739763405,0.2892275,117270.0,117260.0,0.1129313]
[1754739763607,0.2892275,117270.0,117260.0,0.45896009]
[1754739772617,0.2892275,117270.0,117260.0,0.89062202]
[1754739773013,0.1957575,117270.0,117260.0,0.89062202]
[1754739773819,0.2110475,117270.0,117260.0,0.89062202]
[1754739774020,0.1797765,117270.0,117260.0,0.89062202]
[1754739776720,0.1104865,117270.0,117260.0,0.89062202]
[1754739779323,0.02522,117270.0,117260.0,0.89062202]
[1754739779617,0.02522,117270.0,117260.0,0.90765886]
[1754739781424,0.1104846,117270.0,117260.0,0.90765886]
[1754739782020,0.001,117270.0,117260.0,0.90765886]
[1754739782222,0.02589,117270.0,117260.0,0.90765886]
[1754739782524,0.02589,117270.0,117260.0,0.90817109]
[1754739782832,0.1111546,117270.0,117260.0,0.90817109]
[1754739783018,0.1578146,117270.0,117260.0,0.90817109]
[1754739783330,0.2046246,117270.0,117260.0,0.90817109]
[1754739789330,0.2046246,117270.0,117260.0,1.01563435]
[1754739789731,0.1897746,117270.0,117260.0,1.01563435]
[1754739790037,0.1264446,117270.0,117260.0,1.01563435]
[1754739792235,0.1091446,117270.0,117260.0,1.01560864]
[1754739792936,0.02388,117270.0,117260.0,1.01560864]
[1754739793840,0.1091446,117270.0,117260.0,1.01560864]
[1754739796139,0.02388,117270.0,117260.0,1.01560864]
[1754739796330,0.001,117270.0,117260.0,1.01560864]
[1754739797038,0.02388,117270.0,117260.0,1.01560864]
[1754739799843,0.02388,117270.0,117260.0,1.01560864]
[1754739802041,0.16015271,117290.0,117280.0,0.1069972]
[1754739802243,0.07490271,117290.0,117280.0,1.72210239]
[1754739802550,0.20844271,117290.0,117280.0,1.72210239]
[1754739803141,0.20944271,117290.0,117280.0,1.72210239]
[1754739804844,0.20944271,117290.0,117280.0,1.82953994]
[1754739806343,0.20844271,117290.0,117280.0,1.82953994]
[1754739806541,0.19415271,117290.0,117280.0,1.82953994]
[1754739806938,0.19415271,117290.0,117280.0,1.81240547]
[1754739807144,0.11317271,117290.0,117280.0,1.82947814]
[1754739807647,0.11317271,117290.0,117280.0,1.72204059]
[1754739807844,0.14717271,117290.0,117280.0,1.72204059]
[1754739808044,0.14717271,117290.0,117280.0,1.72404059]
[1754739808343,0.11317271,117290.0,117280.0,1.72404059]
[1754739809745,0.11317271,117290.0,117280.0,1.90007973]
[1754739810643,0.11317271,117290.0,117280.0,1.90036943]
[1754739812434,0.14717271,117290.0,117280.0,1.90036943]
[1754739813348,0.18462271,117290.0,117280.0,1.90036943]
[1754739814041,0.18462271,117290.0,117280.0,1.79293188]
[1754739814943,0.18328,117290.0,117280.0,1.79293188]
[1754739815142,0.18328,117290.0,117280.0,1.90036943]
[1754739816646,0.19281,117290.0,117280.0,1.90036943]
[1754739816846,0.11183,117290.0,117280.0,1.90036943]
[1754739821056,0.18254,117290.0,117280.0,1.90036943]
[1754739821247,0.19213,117290.0,117280.0,1.90036943]
[1754739821554,0.20597,117290.0,117280.0,2.26116943]
[1754739823955,0.11183,117290.0,117280.0,2.26116943]
[1754739824451,0.11183,117290.0,117280.0,3.44012943]
[1754739824959,0.14531,117290.0,117280.0,3.44012943]
[1754739825952,0.11183,117290.0,117280.0,3.44012943]
[1754739829157,0.11183,117290.0,117280.0,3.43982839]
[1754739829451,0.11183,117290.0,117280.0,3.33239084]
[1754739830754,0.15865,117290.0,117280.0,2.55470012]
[1754739830951,0.20597,117290.0,117280.0,2.55470012]
[1754739831151,0.20597,117290.0,117280.0,3.0731606]
[1754739831555,0.20597,117290.0,117280.0,2.9879034]
[1754739833156,0.20597,117290.0,117280.0,2.46944292]
[1754739833351,0.20597,117290.0,117280.0,3.0731607]
[1754739833956,0.20597,117290.0,117280.0,2.9879034]
[1754739834957,0.20597,117290.0,117280.0,2.97084207]
[1754739835254,0.20597,117290.0,117280.0,3.07827962]
[1754739837858,0.20597,117290.0,117280.0,2.55981914]
[1754739838061,0.20597,117290.0,117280.0,3.07827962]
[1754739838361,0.20597,117290.0,117280.0,1.07903962]
[1754739838562,0.20597,117290.0,117280.0,1.89703962]
[1754739838861,0.20597,117290.0,117280.0,2.15626986]
[1754739839063,0.20597,117290.0,117280.0,2.24152716]
[1754739839963,0.20597,117290.0,117280.0,1.46383644]
[1754739840167,0.20597,117290.0,117280.0,2.24152716]
[1754739840469,0.20597,117290.0,117280.0,2.04883231]
[1754739841367,0.20597,117290.0,117280.0,1.23083231]
[1754739841670,0.20597,117290.0,117280.0,2.04891231]
[1754739842676,0.20597,117290.0,117280.0,2.13416961]
[1754739843269,0.20597,117290.0,117280.0,2.04891231]
[1754739843474,0.19213,117290.0,117280.0,2.04891231]
[1754739843776,0.19213,117290.0,117280.0,2.13416961]
[1754739843976,0.15865,117290.0,117280.0,2.13416961]
[1754739844474,0.15865,117290.0,117280.0,1.77336961]
[1754739844676,0.15865,117290.0,117280.0,0.95528961]
[1754739844867,0.15865,117290.0,117280.0,2.17479889]
[1754739845068,0.15865,117290.0,117280.0,2.95248961]
[1754739845271,0.19071,117290.0,117280.0,2.95248961]
[1754739845574,0.15865,117290.0,117280.0,2.95248961]
[1754739846078,0.12753,117290.0,117280.0,2.95248961]
[1754739846475,0.12753,117290.0,117280.0,3.05992926]
[1754739847176,0.12753,117290.0,117280.0,2.95248961]
[1754739847879,0.15959,117290.0,117280.0,2.95248961]
[1754739848376,0.12753,117290.0,117280.0,2.95248961]
[1754739848780,0.12753,117290.0,117280.0,3.05992926]
[1754739849479,0.12753,117290.0,117280.0,1.06272926]
[1754739849678,0.12753,117290.0,117280.0,1.77260961]
[1754739850180,0.12753,117290.0,117280.0,1.88004926]
[1754739851878,0.11183,117290.0,117280.0,1.88004926]
[1754739852888,0.11183,117290.0,117280.0,1.77260961]
[1754739862190,0.11183,117290.0,117280.0,0.99491889]
[1754739862391,0.11183,117290.0,117280.0,1.77260961]
[1754739862988,0.11183,117290.0,117280.0,2.13340961]
[1754739864492,0.11183,117290.0,117280.0,1.77260961]
[1754739864793,0.11183,117290.0,117280.0,1.88005421]
[1754739866396,0.11183,117290.0,117280.0,1.10236349]
[1754739866596,0.11183,117290.0,117280.0,1.88005421]
[1754739867196,0.11183,117290.0,117280.0,1.10236349]
[1754739867389,0.11183,117290.0,117280.0,1.88005421]
[1754739868396,0.11183,117290.0,117280.0,1.87805421]
[1754739875702,0.11183,117290.0,117280.0,1.77060961]
[1754739878902,0.11183,117290.0,117280.0,2.13140961]
[1754739880599,0.11183,117290.0,117280.0,3.31032961]
[1754739885798,0.08895,117290.0,117280.0,3.31032961]
[1754739886003,0.08895,117290.0,117280.0,3.41776529]
[1754739886402,0.0037,117290.0,117280.0,3.41776529]
[1754739887699,0.0037,117290.0,117280.0,3.05696529]
[1754739887906,0.08895,117290.0,117280.0,3.41776529]
[1754739889106,0.11394,117290.0,117280.0,3.41776529]
[1754739891802,0.02869,117290.0,117280.0,3.41776529]
[1754739892508,0.11394,117290.0,117280.0,3.41776529]
[1754739893109,0.0037,117290.0,117280.0,3.41776529]